[Event "Late-Titled-Tuesday-Blitz-October-10-2023"]
[Site "Chess.com"]
[Date "2023.10.10"]
[Round "3"]
[White "Jospem"]
[Black "Kiborg95"]
[Result "1-0"]
[WhiteElo "3112"]
[BlackElo "2811"]
[TimeControl "180+1"]
[EndTime "14:27:19 PDT"]
[Termination "Jospem won by resignation"]

1. e4 {[%clk 0:03:00.9]} 1... d6 {[%clk 0:02:53.8]} 2. d4 {[%clk 0:02:58.1]}
2... Nf6 {[%clk 0:02:54]} 3. Bd3 {[%clk 0:02:57.6]} 3... e5 {[%clk 0:02:54.2]}
4. c3 {[%clk 0:02:58.4]} 4... Nc6 {[%clk 0:02:54.6]} 5. Nf3 {[%clk 0:02:58.7]}
5... g6 {[%clk 0:02:54.6]} 6. O-O {[%clk 0:02:58.6]} 6... Bg7 {[%clk 0:02:54.9]}
7. h3 {[%clk 0:02:59.4]} 7... O-O {[%clk 0:02:55.1]} 8. Re1 {[%clk 0:02:59.3]}
8... a5 {[%clk 0:02:54.4]} 9. Nbd2 {[%clk 0:02:56.1]} 9... Re8 {[%clk
0:02:52.6]} 10. Bc2 {[%clk 0:02:40.3]} 10... b5 {[%clk 0:02:47.3]} 11. a3 {[%clk
0:02:37.1]} 11... a4 {[%clk 0:02:46.5]} 12. Nf1 {[%clk 0:02:37.8]} 12... Bd7
{[%clk 0:02:37.2]} 13. Ng3 {[%clk 0:02:34.4]} 13... Na5 {[%clk 0:02:36.1]} 14.
Rb1 {[%clk 0:02:28]} 14... c5 {[%clk 0:02:33.5]} 15. Be3 {[%clk 0:02:22.4]}
15... Nc4 {[%clk 0:02:29.8]} 16. dxc5 {[%clk 0:02:03.2]} 16... Nxe3 {[%clk
0:02:29.4]} 17. Rxe3 {[%clk 0:02:04.1]} 17... dxc5 {[%clk 0:02:29.5]} 18. Qe1
{[%clk 0:02:05]} 18... Qc7 {[%clk 0:02:23.9]} 19. Re2 {[%clk 0:02:05.3]} 19...
Be6 {[%clk 0:02:18.7]} 20. Rd1 {[%clk 0:02:03.4]} 20... Bh6 {[%clk 0:02:13.9]}
21. Nf1 {[%clk 0:01:47.8]} 21... Bc4 {[%clk 0:01:26.4]} 22. Bd3 {[%clk
0:01:47.1]} 22... Bxd3 {[%clk 0:01:26.9]} 23. Rxd3 {[%clk 0:01:47]} 23... Red8
{[%clk 0:01:27.5]} 24. Rd1 {[%clk 0:01:45.2]} 24... c4 {[%clk 0:01:12.2]} 25.
Ne3 {[%clk 0:01:18.7]} 25... Bxe3 {[%clk 0:01:11.6]} 26. Rxe3 {[%clk 0:01:17.1]}
26... Rxd1 {[%clk 0:01:12.2]} 27. Qxd1 {[%clk 0:01:18]} 27... Rd8 {[%clk
0:01:12.6]} 28. Qc2 {[%clk 0:01:18.5]} 28... Nd7 {[%clk 0:01:11.8]} 29. Re1
{[%clk 0:01:04]} 29... Nc5 {[%clk 0:01:11.8]} 30. Rd1 {[%clk 0:01:04.4]} 30...
Rxd1+ {[%clk 0:01:00]} 31. Qxd1 {[%clk 0:01:05.3]} 31... Nd3 {[%clk 0:01:00.6]}
32. Qe2 {[%clk 0:00:58.8]} 32... Qd6 {[%clk 0:00:54.9]} 33. g3 {[%clk
0:00:58.8]} 33... f6 {[%clk 0:00:51]} 34. Kg2 {[%clk 0:00:57.7]} 34... Kf7
{[%clk 0:00:51]} 35. h4 {[%clk 0:00:56.6]} 35... Qc5 {[%clk 0:00:50.6]} 36. h5
{[%clk 0:00:54.2]} 36... Qc6 {[%clk 0:00:46.9]} 37. hxg6+ {[%clk 0:00:52.7]}
37... hxg6 {[%clk 0:00:47.8]} 38. Kg1 {[%clk 0:00:49]} 38... Ke7 {[%clk
0:00:41.6]} 39. Nh4 {[%clk 0:00:44.9]} 39... g5 {[%clk 0:00:30.9]} 40. Nf5+
{[%clk 0:00:44.4]} 40... Kd8 {[%clk 0:00:30.5]} 41. Qe3 {[%clk 0:00:33.7]} 41...
Qc5 {[%clk 0:00:29.4]} 42. Qf3 {[%clk 0:00:30.3]} 42... g4 {[%clk 0:00:27.9]}
43. Qe2 {[%clk 0:00:29.3]} 43... Qc6 {[%clk 0:00:13.7]} 44. Qxg4 {[%clk
0:00:28.6]} 44... Nxb2 {[%clk 0:00:13.9]} 45. Qg8+ {[%clk 0:00:26.9]} 45... Kc7
{[%clk 0:00:14]} 46. Qh7+ {[%clk 0:00:19.6]} 46... Kb6 {[%clk 0:00:14.1]} 47.
Ne7 {[%clk 0:00:20.3]} 47... Qd6 {[%clk 0:00:11.8]} 48. Nd5+ {[%clk 0:00:20.9]}
48... Ka6 {[%clk 0:00:11.4]} 49. Qg8 {[%clk 0:00:19.2]} 49... Qc6 {[%clk
0:00:09.4]} 50. Nb4+ {[%clk 0:00:19.5]} 1-0

[Event "Late-Titled-Tuesday-Blitz-October-10-2023"]
[Site "Chess.com"]
[Date "2023.10.10"]
[Round "3"]
[White "Cheer_Down"]
[Black "greekplayer1"]
[Result "1-0"]
[WhiteElo "2465"]
[BlackElo "2655"]
[TimeControl "180+1"]
[EndTime "14:27:19 PDT"]
[Termination "Cheer_Down won by checkmate"]

1. e4 {[%clk 0:03:00.9]} 1... c5 {[%clk 0:02:40.3]} 2. Nf3 {[%clk 0:03:00.2]}
2... d6 {[%clk 0:02:40.6]} 3. d4 {[%clk 0:02:59.7]} 3... cxd4 {[%clk 0:02:41.5]}
4. Nxd4 {[%clk 0:03:00]} 4... Nf6 {[%clk 0:02:42.1]} 5. Nc3 {[%clk 0:03:00.2]}
5... a6 {[%clk 0:02:42.7]} 6. Bg5 {[%clk 0:03:00.1]} 6... Nbd7 {[%clk
0:02:42.2]} 7. f4 {[%clk 0:02:59.7]} 7... Qc7 {[%clk 0:02:41.2]} 8. Qe2 {[%clk
0:02:58.7]} 8... h6 {[%clk 0:02:38.5]} 9. Bxf6 {[%clk 0:02:55.4]} 9... Nxf6
{[%clk 0:02:39.4]} 10. e5 {[%clk 0:02:55.6]} 10... dxe5 {[%clk 0:02:30.3]} 11.
fxe5 {[%clk 0:02:55.8]} 11... Bg4 {[%clk 0:02:27.8]} 12. Qe3 {[%clk 0:02:38.7]}
12... Nd7 {[%clk 0:02:24]} 13. h3 {[%clk 0:02:38.2]} 13... Be6 {[%clk
0:02:21.5]} 14. Nxe6 {[%clk 0:02:33.6]} 14... fxe6 {[%clk 0:02:22.4]} 15. O-O-O
{[%clk 0:02:22.6]} 15... g5 {[%clk 0:02:05.1]} 16. Be2 {[%clk 0:02:15.1]} 16...
O-O-O {[%clk 0:01:41.7]} 17. Bg4 {[%clk 0:02:01.3]} 17... Qxe5 {[%clk
0:01:23.3]} 18. Qxe5 {[%clk 0:02:00.1]} 18... Nxe5 {[%clk 0:01:20.3]} 19. Bxe6+
{[%clk 0:02:00.2]} 19... Kc7 {[%clk 0:01:18.9]} 20. Nd5+ {[%clk 0:01:40.4]}
20... Kb8 {[%clk 0:01:05.3]} 21. Ne3 {[%clk 0:01:35.1]} 21... Bg7 {[%clk
0:01:03.5]} 22. c3 {[%clk 0:01:16.4]} 22... h5 {[%clk 0:00:56.9]} 23. Kc2 {[%clk
0:01:15.3]} 23... Bf6 {[%clk 0:00:41.3]} 24. a4 {[%clk 0:01:13.1]} 24... Nc6
{[%clk 0:00:39.8]} 25. b4 {[%clk 0:01:07.6]} 25... Rdf8 {[%clk 0:00:21.4]} 26.
Rhf1 {[%clk 0:01:05.3]} 26... Rh6 {[%clk 0:00:14.3]} 27. Bd5 {[%clk 0:00:53.1]}
27... Rc8 {[%clk 0:00:12.3]} 28. Kb3 {[%clk 0:00:51.2]} 28... Na5+ {[%clk
0:00:10.7]} 29. bxa5 {[%clk 0:00:45.7]} 29... Rxc3+ {[%clk 0:00:11.1]} 30. Ka2
{[%clk 0:00:42.1]} 30... Rxe3 {[%clk 0:00:12]} 31. Rb1 {[%clk 0:00:40.3]} 31...
Re2+ {[%clk 0:00:12.2]} 32. Ka3 {[%clk 0:00:40.5]} 32... Kc7 {[%clk 0:00:11.1]}
33. Rxb7+ {[%clk 0:00:38.6]} 33... Kd6 {[%clk 0:00:11.2]} 34. Rd1 {[%clk
0:00:38.3]} 34... Ke5 {[%clk 0:00:05.5]} 35. Bf3 {[%clk 0:00:34.4]} 35... Re3+
{[%clk 0:00:05.5]} 36. Ka2 {[%clk 0:00:34.6]} 36... g4 {[%clk 0:00:05.3]} 37.
hxg4 {[%clk 0:00:29.8]} 37... hxg4 {[%clk 0:00:06.2]} 38. Bxg4 {[%clk
0:00:30.2]} 38... Rh4 {[%clk 0:00:06.5]} 39. Bd7 {[%clk 0:00:25.2]} 39... Re2+
{[%clk 0:00:05]} 40. Kb1 {[%clk 0:00:24.7]} 40... Rh2 {[%clk 0:00:03]} 41. Bc6
{[%clk 0:00:23.1]} 41... Kf4 {[%clk 0:00:03.2]} 42. Rb3 {[%clk 0:00:21.6]} 42...
Rh8 {[%clk 0:00:02.6]} 43. Rf1+ {[%clk 0:00:21]} 43... Kg5 {[%clk 0:00:03]} 44.
Rg3+ {[%clk 0:00:16.4]} 44... Kh6 {[%clk 0:00:03.6]} 45. Rh1+ {[%clk 0:00:15.1]}
45... Bh4 {[%clk 0:00:02.4]} 46. Rxh4# {[%clk 0:00:15.1]} 1-0

[Event "Late-Titled-Tuesday-Blitz-October-10-2023"]
[Site "Chess.com"]
[Date "2023.10.10"]
[Round "3"]
[White "jaskol95"]
[Black "schondeln"]
[Result "1/2-1/2"]
[WhiteElo "2574"]
[BlackElo "2382"]
[TimeControl "180+1"]
[EndTime "14:27:20 PDT"]
[Termination "Game drawn by repetition"]

1. d4 {[%clk 0:02:48.8]} 1... d5 {[%clk 0:02:59.4]} 2. Nc3 {[%clk 0:02:48.8]}
2... c6 {[%clk 0:02:55.5]} 3. Bf4 {[%clk 0:02:47.6]} 3... Bf5 {[%clk 0:02:54.8]}
4. e3 {[%clk 0:02:45.7]} 4... Nf6 {[%clk 0:02:53.8]} 5. Nf3 {[%clk 0:02:44.2]}
5... Nbd7 {[%clk 0:02:52.7]} 6. Ne5 {[%clk 0:02:43.1]} 6... Nxe5 {[%clk
0:02:46.4]} 7. Bxe5 {[%clk 0:02:38.8]} 7... Ne4 {[%clk 0:02:46.2]} 8. Nxe4
{[%clk 0:02:38.5]} 8... Bxe4 {[%clk 0:02:46.4]} 9. f3 {[%clk 0:02:36.6]} 9...
Bg6 {[%clk 0:02:45.9]} 10. Bd3 {[%clk 0:02:37]} 10... Bxd3 {[%clk 0:02:35.7]}
11. Qxd3 {[%clk 0:02:36.1]} 11... e6 {[%clk 0:02:33.1]} 12. O-O {[%clk
0:02:30.8]} 12... f6 {[%clk 0:02:32.9]} 13. Bg3 {[%clk 0:02:30.7]} 13... Bd6
{[%clk 0:02:33.4]} 14. e4 {[%clk 0:02:26.4]} 14... Bxg3 {[%clk 0:02:31.9]} 15.
hxg3 {[%clk 0:02:26.1]} 15... O-O {[%clk 0:02:27.6]} 16. c3 {[%clk 0:02:21.4]}
16... Qd6 {[%clk 0:02:26.8]} 17. f4 {[%clk 0:02:10.6]} 17... dxe4 {[%clk
0:02:25.1]} 18. Qxe4 {[%clk 0:02:10.8]} 18... Qd5 {[%clk 0:02:24.2]} 19. Rfe1
{[%clk 0:02:09.8]} 19... Qxe4 {[%clk 0:02:17.5]} 20. Rxe4 {[%clk 0:02:09.9]}
20... Kf7 {[%clk 0:02:17.6]} 21. Rae1 {[%clk 0:02:09.3]} 21... Rfe8 {[%clk
0:02:17.8]} 22. Kf2 {[%clk 0:02:08.5]} 22... Re7 {[%clk 0:02:17.9]} 23. Ke3
{[%clk 0:01:56.3]} 23... Rd8 {[%clk 0:02:15.6]} 24. b4 {[%clk 0:01:53.5]} 24...
h5 {[%clk 0:01:52.3]} 25. Kd3 {[%clk 0:01:47.8]} 25... g6 {[%clk 0:01:51.2]} 26.
a4 {[%clk 0:01:44.6]} 26... a6 {[%clk 0:01:50]} 27. c4 {[%clk 0:01:37]} 27...
Rd6 {[%clk 0:01:43.4]} 28. Kc3 {[%clk 0:01:35.7]} 28... Red7 {[%clk 0:01:35.4]}
29. Rd1 {[%clk 0:00:48.7]} 29... Rd8 {[%clk 0:01:14.8]} 30. Re2 {[%clk 0:00:48]}
30... R8d7 {[%clk 0:01:14.1]} 31. Rb2 {[%clk 0:00:48.1]} 31... e5 {[%clk
0:01:09.5]} 32. fxe5 {[%clk 0:00:47.5]} 32... fxe5 {[%clk 0:01:09.5]} 33. Rf1+
{[%clk 0:00:47]} 33... Ke6 {[%clk 0:00:54.7]} 34. dxe5 {[%clk 0:00:44.3]} 34...
Rd3+ {[%clk 0:00:54.4]} 35. Kc2 {[%clk 0:00:44.8]} 35... Rd2+ {[%clk 0:00:24.2]}
36. Kc1 {[%clk 0:00:45]} 36... Rxb2 {[%clk 0:00:25.1]} 37. Kxb2 {[%clk
0:00:45.7]} 37... Kxe5 {[%clk 0:00:25.8]} 38. Kc3 {[%clk 0:00:43.3]} 38... Ke4
{[%clk 0:00:22.2]} 39. Re1+ {[%clk 0:00:41.9]} 39... Kf5 {[%clk 0:00:21.9]} 40.
Re3 {[%clk 0:00:37.8]} 40... g5 {[%clk 0:00:20.2]} 41. c5 {[%clk 0:00:33.1]}
41... Kg4 {[%clk 0:00:15.1]} 42. Kc4 {[%clk 0:00:33.7]} 42... Rf7 {[%clk
0:00:11.3]} 43. b5 {[%clk 0:00:33.3]} 43... axb5+ {[%clk 0:00:11]} 44. axb5
{[%clk 0:00:34]} 44... cxb5+ {[%clk 0:00:11.9]} 45. Kxb5 {[%clk 0:00:34.7]}
45... Rf2 {[%clk 0:00:06.5]} 46. Kb6 {[%clk 0:00:31.4]} 46... Rxg2 {[%clk
0:00:06.5]} 47. Kxb7 {[%clk 0:00:31.8]} 47... Rc2 {[%clk 0:00:06.4]} 48. c6
{[%clk 0:00:28.8]} 48... h4 {[%clk 0:00:06.7]} 49. gxh4 {[%clk 0:00:28.9]} 49...
gxh4 {[%clk 0:00:07.6]} 50. Re4+ {[%clk 0:00:28.8]} 50... Kg3 {[%clk 0:00:07.4]}
51. Re3+ {[%clk 0:00:28.8]} 51... Kg4 {[%clk 0:00:07.4]} 52. c7 {[%clk
0:00:26.7]} 52... h3 {[%clk 0:00:06.9]} 53. Re4+ {[%clk 0:00:26.3]} 53... Kg3
{[%clk 0:00:07]} 54. Re3+ {[%clk 0:00:26.9]} 54... Kg4 {[%clk 0:00:07.2]} 55.
Re4+ {[%clk 0:00:27]} 55... Kg3 {[%clk 0:00:07.4]} 56. Re3+ {[%clk 0:00:27.3]}
56... Kg4 {[%clk 0:00:07.5]} 1/2-1/2

[Event "Late-Titled-Tuesday-Blitz-October-10-2023"]
[Site "Chess.com"]
[Date "2023.10.10"]
[Round "3"]
[White "ferdipy"]
[Black "rychessmaster1"]
[Result "0-1"]
[WhiteElo "2362"]
[BlackElo "2704"]
[TimeControl "180+1"]
[EndTime "14:27:21 PDT"]
[Termination "rychessmaster1 won on time"]

1. e4 {[%clk 0:02:07.2]} 1... c6 {[%clk 0:02:58.1]} 2. d4 {[%clk 0:02:07]} 2...
d5 {[%clk 0:02:58.5]} 3. exd5 {[%clk 0:02:07.9]} 3... cxd5 {[%clk 0:02:59.4]} 4.
Bd3 {[%clk 0:02:08.7]} 4... Nf6 {[%clk 0:02:59.8]} 5. c3 {[%clk 0:02:09.6]} 5...
Bg4 {[%clk 0:02:59.6]} 6. Qb3 {[%clk 0:02:09.3]} 6... Qd7 {[%clk 0:03:00]} 7.
Bf4 {[%clk 0:02:09.8]} 7... Nc6 {[%clk 0:03:00.4]} 8. Nd2 {[%clk 0:02:10.5]}
8... e6 {[%clk 0:03:00.9]} 9. Ngf3 {[%clk 0:02:11]} 9... Bd6 {[%clk 0:03:01.5]}
10. Bxd6 {[%clk 0:02:11.3]} 10... Qxd6 {[%clk 0:03:02.4]} 11. O-O {[%clk
0:02:12]} 11... O-O {[%clk 0:03:02.5]} 12. Rfe1 {[%clk 0:02:12.6]} 12... Qc7
{[%clk 0:03:01.4]} 13. h3 {[%clk 0:02:12.5]} 13... Bh5 {[%clk 0:03:01.4]} 14.
Ne5 {[%clk 0:02:12.3]} 14... Rab8 {[%clk 0:02:56.4]} 15. Qc2 {[%clk 0:02:08.9]}
15... Rfc8 {[%clk 0:02:52.1]} 16. Rac1 {[%clk 0:02:04.7]} 16... b5 {[%clk
0:02:47.5]} 17. g4 {[%clk 0:01:57.2]} 17... Bg6 {[%clk 0:02:47.4]} 18. Nxg6
{[%clk 0:01:56.6]} 18... hxg6 {[%clk 0:02:48.3]} 19. Qd1 {[%clk 0:01:56.2]}
19... Qf4 {[%clk 0:02:36.4]} 20. Re3 {[%clk 0:01:51.8]} 20... b4 {[%clk
0:02:33.1]} 21. Rf3 {[%clk 0:01:52]} 21... Qg5 {[%clk 0:02:29]} 22. Re3 {[%clk
0:01:12.9]} 22... bxc3 {[%clk 0:02:25.4]} 23. bxc3 {[%clk 0:01:13.8]} 23... Rb2
{[%clk 0:02:11.2]} 24. Rc2 {[%clk 0:01:13.4]} 24... Rcb8 {[%clk 0:02:11.3]} 25.
Qc1 {[%clk 0:01:11.8]} 25... Rxc2 {[%clk 0:02:11.4]} 26. Qxc2 {[%clk 0:01:11.7]}
26... Qf4 {[%clk 0:01:58.1]} 27. Rf3 {[%clk 0:01:09.6]} 27... Qd6 {[%clk
0:01:58.1]} 28. Kg2 {[%clk 0:00:55.6]} 28... Ne7 {[%clk 0:01:49.9]} 29. Nb3
{[%clk 0:00:47.3]} 29... e5 {[%clk 0:01:44]} 30. dxe5 {[%clk 0:00:33.8]} 30...
Qxe5 {[%clk 0:01:44.9]} 31. Nd4 {[%clk 0:00:31.8]} 31... Qd6 {[%clk 0:01:40.3]}
32. Qa4 {[%clk 0:00:29.4]} 32... Rb7 {[%clk 0:01:08.8]} 33. Qa6 {[%clk
0:00:26.2]} 33... Qxa6 {[%clk 0:01:07.8]} 34. Bxa6 {[%clk 0:00:26.8]} 34... Rb2
{[%clk 0:01:08]} 35. a3 {[%clk 0:00:24.8]} 35... Ne4 {[%clk 0:01:05.8]} 36. Bd3
{[%clk 0:00:16]} 36... Nc8 {[%clk 0:00:57.3]} 37. Bxe4 {[%clk 0:00:14.9]} 37...
dxe4 {[%clk 0:00:58.2]} 38. Re3 {[%clk 0:00:15.3]} 38... Nd6 {[%clk 0:00:58.8]}
39. c4 {[%clk 0:00:14.7]} 39... f5 {[%clk 0:00:37.1]} 40. gxf5 {[%clk
0:00:14.4]} 40... gxf5 {[%clk 0:00:38]} 41. c5 {[%clk 0:00:14.8]} 41... Nc4
{[%clk 0:00:38.6]} 42. Re1 {[%clk 0:00:14.4]} 42... g6 {[%clk 0:00:36.5]} 43.
Rc1 {[%clk 0:00:13.6]} 43... Ne3+ {[%clk 0:00:33]} 44. Kg3 {[%clk 0:00:14.1]}
44... Nd5 {[%clk 0:00:33]} 45. c6 {[%clk 0:00:14.2]} 45... Nc7 {[%clk
0:00:33.5]} 46. Kf4 {[%clk 0:00:14.9]} 46... Kf7 {[%clk 0:00:33.3]} 47. Ke5
{[%clk 0:00:14.8]} 47... Rd2 {[%clk 0:00:30.6]} 48. Rc4 {[%clk 0:00:13.3]} 48...
Ke7 {[%clk 0:00:28.1]} 49. f3 {[%clk 0:00:11.9]} 49... e3 {[%clk 0:00:27.1]} 50.
Rc2 {[%clk 0:00:10.5]} 50... e2 {[%clk 0:00:25.4]} 0-1

[Event "Late-Titled-Tuesday-Blitz-October-10-2023"]
[Site "Chess.com"]
[Date "2023.10.10"]
[Round "3"]
[White "The_Straightforward_Rook"]
[Black "Bauman_Guy"]
[Result "0-1"]
[WhiteElo "2555"]
[BlackElo "2856"]
[TimeControl "180+1"]
[EndTime "14:27:22 PDT"]
[Termination "Bauman_Guy won by resignation"]

1. d4 {[%clk 0:02:54.7]} 1... Nf6 {[%clk 0:02:59.4]} 2. c4 {[%clk 0:02:54.6]}
2... b6 {[%clk 0:02:59.5]} 3. Nf3 {[%clk 0:02:51.3]} 3... Bb7 {[%clk 0:02:57.7]}
4. g3 {[%clk 0:02:51.4]} 4... g6 {[%clk 0:02:57.6]} 5. Bg2 {[%clk 0:02:49.6]}
5... Bg7 {[%clk 0:02:58.1]} 6. O-O {[%clk 0:02:49.6]} 6... O-O {[%clk
0:02:58.3]} 7. Nc3 {[%clk 0:02:48.3]} 7... e6 {[%clk 0:02:57.6]} 8. Qc2 {[%clk
0:02:43.7]} 8... a5 {[%clk 0:02:55.5]} 9. e4 {[%clk 0:02:42.5]} 9... d6 {[%clk
0:02:51.2]} 10. b3 {[%clk 0:02:34.1]} 10... Nc6 {[%clk 0:02:49.6]} 11. Bb2
{[%clk 0:02:31.8]} 11... e5 {[%clk 0:02:48.1]} 12. dxe5 {[%clk 0:02:17]} 12...
dxe5 {[%clk 0:02:47.1]} 13. Rad1 {[%clk 0:02:15.5]} 13... Nd7 {[%clk 0:02:40.2]}
14. Nb5 {[%clk 0:02:13.3]} 14... Re8 {[%clk 0:02:07.5]} 15. Bh3 {[%clk 0:02:12]}
15... Re7 {[%clk 0:02:06.5]} 16. a3 {[%clk 0:02:09.4]} 16... Rc8 {[%clk
0:01:55.9]} 17. Rd2 {[%clk 0:02:06.2]} 17... Qe8 {[%clk 0:01:50.3]} 18. Rfd1
{[%clk 0:02:05.9]} 18... Nd4 {[%clk 0:01:50.7]} 19. Nfxd4 {[%clk 0:01:56.1]}
19... exd4 {[%clk 0:01:51.6]} 20. Bxd4 {[%clk 0:01:56.4]} 20... Bxe4 {[%clk
0:01:47.8]} 21. Qc3 {[%clk 0:01:51.5]} 21... Bf8 {[%clk 0:01:37.6]} 22. Bf6
{[%clk 0:01:42.2]} 22... Nxf6 {[%clk 0:01:36.8]} 23. Bxc8 {[%clk 0:01:42]} 23...
Qxc8 {[%clk 0:01:33]} 24. Qxf6 {[%clk 0:01:40]} 24... Qh3 {[%clk 0:01:33.5]} 25.
f3 {[%clk 0:01:31.9]} 25... Re6 {[%clk 0:01:32.6]} 26. Qh4 {[%clk 0:01:26.3]}
26... Bc5+ {[%clk 0:01:30.8]} 27. Nd4 {[%clk 0:01:17.9]} 27... Qxh4 {[%clk
0:01:27.2]} 28. gxh4 {[%clk 0:01:18]} 28... Bxf3 {[%clk 0:01:28.1]} 29. Rf1
{[%clk 0:01:15]} 29... Re2 {[%clk 0:01:09.1]} 30. Rf2 {[%clk 0:01:09.6]} 30...
Re1+ {[%clk 0:00:37.2]} 31. Rf1 {[%clk 0:01:09.4]} 31... Re3 {[%clk 0:00:37.7]}
32. Nxf3 {[%clk 0:01:02.1]} 32... Rxf3+ {[%clk 0:00:36.1]} 33. Kg2 {[%clk
0:01:01.5]} 33... Rxf1 {[%clk 0:00:32.6]} 34. Kxf1 {[%clk 0:01:00.9]} 34... Bxa3
{[%clk 0:00:33.5]} 35. Kg2 {[%clk 0:00:54.5]} 35... h5 {[%clk 0:00:33.3]} 36.
Kf3 {[%clk 0:00:54.7]} 36... Bd6 {[%clk 0:00:33.1]} 37. Ke4 {[%clk 0:00:52.3]}
37... Kg7 {[%clk 0:00:32]} 38. Rf2 {[%clk 0:00:49.2]} 38... Be7 {[%clk
0:00:26.5]} 39. Kd5 {[%clk 0:00:46]} 39... Bxh4 {[%clk 0:00:25.9]} 40. Re2
{[%clk 0:00:43.2]} 40... Bg5 {[%clk 0:00:24.2]} 41. Re4 {[%clk 0:00:41.7]} 41...
f5 {[%clk 0:00:23.7]} 42. Rd4 {[%clk 0:00:33.2]} 42... Be3 {[%clk 0:00:23.6]}
43. Rd3 {[%clk 0:00:31.7]} 43... Bf4 {[%clk 0:00:24]} 44. h3 {[%clk 0:00:30.3]}
44... Kf6 {[%clk 0:00:22.7]} 45. c5 {[%clk 0:00:28.8]} 45... g5 {[%clk
0:00:16.3]} 46. c6 {[%clk 0:00:25.3]} 46... g4 {[%clk 0:00:16.2]} 47. hxg4
{[%clk 0:00:25.5]} 47... hxg4 {[%clk 0:00:13.4]} 48. Rd1 {[%clk 0:00:20.1]}
48... Be3 {[%clk 0:00:12.7]} 49. Rh1 {[%clk 0:00:19.1]} 49... g3 {[%clk
0:00:12]} 50. Rh6+ {[%clk 0:00:17.9]} 50... Bxh6 {[%clk 0:00:11.6]} 0-1

[Event "Late-Titled-Tuesday-Blitz-October-10-2023"]
[Site "Chess.com"]
[Date "2023.10.10"]
[Round "3"]
[White "DanielNaroditsky"]
[Black "Binary010"]
[Result "1/2-1/2"]
[WhiteElo "3174"]
[BlackElo "2839"]
[TimeControl "180+1"]
[EndTime "14:27:24 PDT"]
[Termination "Game drawn by repetition"]

1. d4 {[%clk 0:03:00.9]} 1... Nf6 {[%clk 0:02:59.7]} 2. Nc3 {[%clk 0:03:01.1]}
2... d5 {[%clk 0:02:59.5]} 3. Bf4 {[%clk 0:03:01.9]} 3... c5 {[%clk 0:02:58.9]}
4. e4 {[%clk 0:03:02.1]} 4... Nxe4 {[%clk 0:02:58.3]} 5. Nxe4 {[%clk 0:03:02.5]}
5... dxe4 {[%clk 0:02:59.2]} 6. dxc5 {[%clk 0:03:03.3]} 6... Qa5+ {[%clk
0:02:59.3]} 7. c3 {[%clk 0:03:03.8]} 7... Qxc5 {[%clk 0:02:59.6]} 8. Qa4+ {[%clk
0:03:04.1]} 8... Nc6 {[%clk 0:02:59.9]} 9. Qxe4 {[%clk 0:03:04.9]} 9... g6
{[%clk 0:03:00.4]} 10. Nf3 {[%clk 0:03:05.2]} 10... Bg7 {[%clk 0:03:00.7]} 11.
Rd1 {[%clk 0:03:05.9]} 11... Qb6 {[%clk 0:02:54.5]} 12. Rd2 {[%clk 0:02:46.8]}
12... Bf5 {[%clk 0:02:49.5]} 13. Qa4 {[%clk 0:02:47.1]} 13... O-O {[%clk
0:02:48.1]} 14. Bc4 {[%clk 0:02:39.1]} 14... Rad8 {[%clk 0:02:40.4]} 15. Be3
{[%clk 0:02:39.2]} 15... Qc7 {[%clk 0:02:37.1]} 16. Bd5 {[%clk 0:02:33.8]} 16...
Ne5 {[%clk 0:02:17.1]} 17. Nxe5 {[%clk 0:02:06.1]} 17... Qxe5 {[%clk 0:02:14.4]}
18. Qb3 {[%clk 0:01:51.9]} 18... e6 {[%clk 0:02:07.8]} 19. Bf3 {[%clk
0:01:50.4]} 19... Rxd2 {[%clk 0:02:07.3]} 20. Kxd2 {[%clk 0:01:51.3]} 20... Rd8+
{[%clk 0:01:58]} 21. Kc1 {[%clk 0:01:51.7]} 21... b6 {[%clk 0:01:58.3]} 22. g3
{[%clk 0:01:40.8]} 22... Rd3 {[%clk 0:01:37.6]} 23. Bf4 {[%clk 0:01:14.9]} 23...
Qc5 {[%clk 0:01:26.4]} 24. Be2 {[%clk 0:01:15.2]} 24... Rd8 {[%clk 0:01:21.7]}
25. Be3 {[%clk 0:01:11]} 25... Qc6 {[%clk 0:01:20.6]} 26. Rd1 {[%clk 0:01:11.4]}
26... Rxd1+ {[%clk 0:01:19]} 27. Qxd1 {[%clk 0:01:06.1]} 27... Qe4 {[%clk
0:01:12.6]} 28. Kd2 {[%clk 0:00:55.1]} 28... h5 {[%clk 0:01:08.4]} 29. Bf3
{[%clk 0:00:46.6]} 29... Qc4 {[%clk 0:01:02]} 30. a3 {[%clk 0:00:34.2]} 30... h4
{[%clk 0:00:56.8]} 31. Ke1 {[%clk 0:00:27.9]} 31... Bf6 {[%clk 0:00:50.9]} 32.
Be2 {[%clk 0:00:26.8]} 32... Qc6 {[%clk 0:00:45.2]} 33. Bf3 {[%clk 0:00:26.9]}
33... Be4 {[%clk 0:00:42.3]} 34. Bxe4 {[%clk 0:00:23.6]} 34... Qxe4 {[%clk
0:00:43.2]} 35. Ke2 {[%clk 0:00:20.8]} 35... h3 {[%clk 0:00:41]} 36. f3 {[%clk
0:00:17.2]} 36... Qc4+ {[%clk 0:00:32]} 37. Qd3 {[%clk 0:00:17.7]} 37... Qb3
{[%clk 0:00:30.4]} 38. Qd2 {[%clk 0:00:18.2]} 38... a5 {[%clk 0:00:24.7]} 39.
Kf2 {[%clk 0:00:18.4]} 39... a4 {[%clk 0:00:24.5]} 40. Bd4 {[%clk 0:00:12.8]}
40... Bxd4+ {[%clk 0:00:17.1]} 41. cxd4 {[%clk 0:00:13.7]} 41... Kg7 {[%clk
0:00:12.9]} 42. g4 {[%clk 0:00:12.9]} 42... Qd5 {[%clk 0:00:08.8]} 43. Qe3
{[%clk 0:00:13.4]} 43... Qa2 {[%clk 0:00:08.2]} 44. Qc3 {[%clk 0:00:10.4]} 44...
Kh7 {[%clk 0:00:06.7]} 45. Kg3 {[%clk 0:00:09.6]} 45... Qb1 {[%clk 0:00:07.3]}
46. Kxh3 {[%clk 0:00:05.3]} 46... Qf1+ {[%clk 0:00:07.6]} 47. Kg3 {[%clk
0:00:06]} 47... Qg1+ {[%clk 0:00:08.3]} 48. Kh3 {[%clk 0:00:06.4]} 48... Qf1+
{[%clk 0:00:08.6]} 49. Kg3 {[%clk 0:00:03.7]} 49... Qg1+ {[%clk 0:00:09]} 50.
Kh3 {[%clk 0:00:02.9]} 50... Qf1+ {[%clk 0:00:09.4]} 1/2-1/2